fUST/lending_fUST_20250615
["ID","MTS","AMOUNT","RATE_DAILY","PERIOD"]
[365798495,1749918651147,-153.0,0.00022906,2]
[365798496,1749918651156,-153.0,0.00022906,2]
[365798497,1749918651170,-153.0,0.00022906,2]
[365798498,1749918651185,-153.0,0.00022906,2]
[365798499,1749918651194,-153.0,0.00022906,2]
[365798500,1749918651204,-153.0,0.00022906,2]
[365798501,1749918651213,-153.0,0.00022906,2]
[365798502,1749918651223,-153.0,0.00022906,2]
[365798503,1749918651232,-153.0,0.00022906,2]
[365798504,1749918651242,-153.0,0.00022906,2]
[365798505,1749918651252,-153.0,0.00022906,2]
[365798506,1749918651262,-153.0,0.00022906,2]
[365798507,1749918651271,-153.0,0.00022906,2]
[365798508,1749918651280,-153.0,0.00022906,2]
[365798509,1749918651289,-153.0,0.00022906,2]
[365798510,1749918651298,-153.0,0.00022906,2]
[365798511,1749918651307,-153.0,0.00022906,2]
[365798512,1749918651317,-153.0,0.00022906,2]
[365798513,1749918651327,-153.0,0.00022906,2]
[365798514,1749918651336,-153.0,0.00022906,2]
[365798515,1749918651345,-153.0,0.00022906,2]
[365798516,1749918651354,-153.0,0.00022906,2]
[365798517,1749918651364,-153.0,0.00022906,2]
[365798518,1749918651379,-153.0,0.00022906,2]
[365798519,1749918651389,-153.0,0.00022906,2]
[365798520,1749918651398,-153.0,0.00022906,2]
[365798521,1749918651407,-153.0,0.00022906,2]
[365798522,1749918651416,-153.0,0.00022906,2]
[365798523,1749918651426,-153.0,0.00022906,2]
[365798524,1749918651435,-153.0,0.00022906,2]
[365798525,1749918651445,-168.0,0.00022923,2]
[365798526,1749918651455,-855.19043624,0.00022934,8]
[365798527,1749918651465,-168.0,0.00022937,2]
[365798528,1749918651474,-816.41,0.00022952,2]
[365798529,1749918651483,-256.0,0.00022965,2]
[365798530,1749918651493,-192.8418287,0.00022973,2]
[365798531,1749918651503,-500.0,0.00022973,2]
[365798532,1749918651512,-421.21542315,0.00022973,2]
[365798533,1749918651522,-500.0,0.00022973,2]
[365798534,1749918651531,-500.0,0.00022973,2]
[365798535,1749918651540,-500.81351494,0.00022973,2]
[365798536,1749918651550,-500.0,0.00022973,2]
[365798537,1749918651559,-2000.00000099,0.00023,2]
[365798538,1749918651569,-5963.37362922,0.00023,2]
[365798539,1749918651579,-6020.85196694,0.00023,3]
[365798540,1749918651589,-15651.68263261,0.00023,2]
[365798541,1749918651598,-2461.31328603,0.00023,20]
[365798542,1749918652148,-943.88,0.00021917,4]
[365798543,1749918652157,-460.0,0.00021917,4]
[365798544,1749918652167,-460.0,0.00021917,4]
[365798545,1749918652177,-943.88,0.00022191,4]
[365798546,1749918652187,-943.88,0.00022465,4]
[365798547,1749918652197,-943.88,0.00022739,4]
[365798548,1749918652207,-39213.76,0.00023,20]
[365798553,1749918767537,331.332741,0.00013699,2]
[365798561,1749919300587,411.5235822,0.00019607,2]
[365798562,1749919300910,411.5235822,0.00019974,2]
[365798563,1749919324743,2261.1213057,0.00019874,2]
[365798564,1749919325010,1899.41277832,0.00019716,2]
[365798565,1749919325034,7754.0406,0.00019716,2]
[365798566,1749919325059,7754.0406,0.00019716,2]
[365798567,1749919325082,7492.50602168,0.00019716,2]
[365798571,1749919362491,152.13182462,0.0002,2]
[365798574,1749919372597,316.3,0.00024658,120]
[365798578,1749919479174,109.4027537,0.00019497,2]
[365798579,1749919479197,196.21437719,0.00019497,2]
[365798580,1749919601811,4000.0,0.0002,2]
[365798582,1749919629192,-331.332741,0.00020187,2]
[365798583,1749919629215,-560.6220244,0.00020211,2]
[365798584,1749919629237,-300.0,0.00020285,2]
[365798585,1749919629260,-300.0,0.00020285,2]
[365798586,1749919629282,-300.0,0.00020286,2]
[365798587,1749919629305,-300.0,0.00020286,2]
[365798588,1749919629330,-20.24111042,0.00020286,2]
[365798589,1749919637084,-1179.75888958,0.00020286,2]
[365798590,1749919637104,-10000.0,0.00020287,2]
[365798591,1749919637124,-245.55273,0.00020335,2]
[365798592,1749919637143,-293.0281551,0.000204,2]
[365798593,1749919637164,-778.35483974,0.000204,2]
[365798594,1749919639096,-3849.45947269,0.000204,2]
[365798595,1749919650091,-12885.90795167,0.000204,2]
[365798603,1749919806723,413.6135152,0.00019534,2]
[365798604,1749919807022,413.6135152,0.00019778,2]
[365798605,1749919814085,2173.17703064,0.000189,2]
[365798621,1749919832716,-413.6135152,0.00020025,2]
[365798622,1749919832726,-161.14771121,0.00020198,2]
[365798623,1749919832737,-184.483126,0.00020295,2]
[365798624,1749919832746,-413.6135152,0.00020306,2]
[365798625,1749919832760,-158.62919808,0.00020333,2]
[365798626,1749919832769,-196.1815304,0.00020433,2]
[365798627,1749919832779,-407.48782799,0.00020643,2]
[365798628,1749919832789,-195.0,0.00020795,2]
[365798629,1749919832799,-413.6135152,0.00020807,2]
[365798630,1749919832808,-195.0,0.00020894,2]
[365798631,1749919832819,-12279.83006116,0.00020977,2]
[365798632,1749919832831,-6318.34544966,0.00020977,2]
[365798633,1749919832882,-522.75,0.00020977,2]
[365798835,1749919838746,-13365.35222508,0.00020977,2]
[365798838,1749919838756,-195.0,0.00020977,2]
[365798841,1749919838765,-413.6135152,0.0002103,2]
[365798843,1749919838775,-297.2077223,0.00021055,2]
[365798846,1749919838784,-365.2762568,0.00021151,2]
[365798848,1749919838793,-365.2762568,0.00021151,2]
[365798850,1749919838803,-365.2762568,0.00021151,2]
[365798852,1749919838812,-500.0,0.00021154,2]
[365798854,1749919838822,-413.6135152,0.00021248,2]
[365798857,1749919838831,-1200.0,0.00021256,2]
[365798860,1749919838840,-1328.92,0.00021257,2]
[365798862,1749919838849,-260.79220991,0.00021281,2]
[365798867,1749919838859,-172.779,0.0002153,2]
[365798868,1749919838868,-413.6135152,0.00021587,2]
[365798870,1749919838877,-300.39179917,0.00021617,2]
[365798872,1749919838886,-413.6135152,0.00021801,2]
[365798873,1749919838895,-195.0,0.00021819,2]
[365798875,1749919838905,-1301.28698967,0.000219,6]
[365798877,1749919838914,-300.0,0.00021914,2]
[365798878,1749919838923,-300.0,0.00021914,2]
[365798880,1749919838932,-500.0,0.00021914,2]
[365798881,1749919838941,-500.0,0.00021914,2]
[365798883,1749919838950,-250.83302763,0.00021914,2]
[365798885,1749919838959,-500.0,0.00021914,2]
[365798886,1749919838968,-500.0,0.00021914,2]
[365798888,1749919838977,-287.34577963,0.00021914,2]
[365798889,1749919838986,-500.0,0.00021914,2]
[365798891,1749919838995,-591.64649592,0.00021914,2]
[365798893,1749919839005,-500.0,0.00021914,2]
[365798894,1749919839014,-500.0,0.00021914,2]
[365798896,1749919839023,-500.0,0.00021914,2]
[365798898,1749919839033,-500.0,0.00021914,2]
[365798899,1749919839041,-500.0,0.00021914,2]
[365798901,1749919839051,-219.96618265,0.00021914,2]
[365798903,1749919839060,-500.0,0.00021914,2]
[365798904,1749919839069,-299.91113061,0.00021914,2]
[365798906,1749919839079,-400.55371975,0.00021914,2]
[365798908,1749919839087,-500.0,0.00021914,2]
[365798909,1749919839097,-500.0,0.00021914,2]
[365798911,1749919839106,-500.0,0.00021914,2]
[365798912,1749919839115,-500.0,0.00021914,2]
[365798914,1749919839124,-500.0,0.00021914,2]
[365798916,1749919839133,-500.0,0.00021914,2]
[365798917,1749919839142,-500.0,0.00021914,2]
[365798919,1749919839151,-500.0,0.00021914,2]
[365798921,1749919839160,-500.0,0.00021914,2]
[365798922,1749919839169,-346.20579594,0.00021914,2]
[365798924,1749919839178,-500.0,0.00021914,2]
[365798925,1749919839187,-500.0,0.00021914,2]
[365798927,1749919839197,-160.0,0.00021915,2]
[365798929,1749919839206,-500.0,0.00021915,2]
[365798930,1749919839215,-460.0,0.00021917,4]
[365798932,1749919839224,-460.0,0.00021917,4]
[365798934,1749919839233,-460.0,0.00021917,4]
[365798935,1749919839242,-460.0,0.00021917,4]
[365798937,1749919839251,-460.0,0.00021917,4]
[365798939,1749919839260,-460.0,0.00021917,4]
[365798940,1749919839269,-410.84202799,0.00021917,4]
[365798943,1749919839287,-460.0,0.00021917,4]
[365798944,1749919839298,-274.86,0.00021917,4]
[365798946,1749919839307,-460.0,0.00021917,4]
[365798947,1749919839316,-460.0,0.00021917,4]
[365798949,1749919839327,-460.0,0.00021917,4]
[365798950,1749919839337,-460.0,0.00021917,4]
[365798952,1749919839346,-460.0,0.00021917,4]
[365798953,1749919839355,-460.0,0.00021917,4]
[365798955,1749919839364,-460.0,0.00021917,4]
[365798957,1749919839374,-442.06678165,0.00021917,4]
[365798959,1749919839384,-410.0,0.00021917,4]
[365798960,1749919839393,-460.0,0.00021917,4]
[365798962,1749919839403,-440.0,0.00021917,4]
[365798963,1749919839412,-460.0,0.00021917,4]
[365798965,1749919839422,-400.0,0.00021917,4]
[365798966,1749919839431,-460.0,0.00021917,4]
[365798968,1749919839441,-460.0,0.00021917,4]
[365798969,1749919839450,-460.0,0.00021917,4]
[365798971,1749919839460,-460.0,0.00021917,4]
[365798972,1749919839474,-460.0,0.00021917,4]
[365798974,1749919839483,-460.0,0.00021917,4]
[365798976,1749919839492,-293.06525187,0.00021917,4]
[365798977,1749919839502,-460.0,0.00021917,4]
[365798979,1749919839512,-517.15,0.00021917,4]
[365798980,1749919839521,-460.0,0.00021917,4]
[365798982,1749919839530,-460.0,0.00021917,4]
[365798983,1749919839539,-460.0,0.00021917,4]
[365798985,1749919839549,-460.0,0.00021917,4]
[365798987,1749919839558,-281.06573425,0.00021917,4]
[365798988,1749919839568,-460.0,0.00021917,4]
[365798990,1749919839578,-430.0,0.00021917,4]
[365798991,1749919839587,-460.0,0.00021917,4]
[365799007,1749919839807,-460.0,0.00021917,4]
[365799009,1749919839817,-430.0,0.00021917,4]
[365799011,1749919839827,-460.0,0.00021917,4]
[365799012,1749919839837,-430.0,0.00021917,4]
[365799013,1749919839846,-460.0,0.00021917,4]
[365799014,1749919839856,-460.0,0.00021917,4]
[365799015,1749919839865,-460.0,0.00021917,4]
[365799016,1749919839874,-580.31335199,0.00021917,4]
[365799017,1749919839884,-460.0,0.00021917,4]
[365799018,1749919839894,-460.0,0.00021917,4]
[365799019,1749919839903,-410.0,0.00021917,4]
[365799020,1749919839913,-266.01322531,0.00021917,4]
[365799021,1749919839923,-440.0,0.00021917,4]
[365799022,1749919839932,-460.0,0.00021917,4]
[365799023,1749919839941,-460.0,0.00021917,4]
[365799024,1749919839951,-344.22252767,0.00021917,4]
[365799025,1749919839960,-460.0,0.00021917,4]
[365799026,1749919839969,-460.0,0.00021917,4]
[365799027,1749919839979,-460.0,0.00021917,4]
[365799028,1749919839988,-460.0,0.00021917,4]
[365799029,1749919839998,-460.0,0.00021917,4]
[365799030,1749919840007,-460.0,0.00021917,4]
[365799031,1749919840016,-460.0,0.00021917,4]
[365799032,1749919840026,-460.0,0.00021917,4]
[365799033,1749919840036,-460.0,0.00021917,4]
[365799034,1749919840045,-460.0,0.00021917,4]
[365799036,1749919840054,-460.0,0.00021917,4]
[365799037,1749919840063,-460.0,0.00021917,4]
[365799038,1749919840073,-460.0,0.00021917,4]
[365799039,1749919840082,-460.0,0.00021917,4]
[365799040,1749919840091,-290.0,0.00021917,4]
[365799041,1749919840101,-460.0,0.00021917,4]
[365799043,1749919840111,-423.30218969,0.00021917,4]
[365799044,1749919840121,-460.0,0.00021917,4]
[365799045,1749919840131,-460.0,0.00021917,4]
[365799046,1749919840141,-460.0,0.00021917,4]
[365799047,1749919840151,-460.0,0.00021917,4]
[365799048,1749919840161,-738.79,0.00021917,4]
[365799049,1749919840171,-178.95483339,0.00021917,4]
[365799050,1749919840182,-460.0,0.00021917,4]
[365799051,1749919840192,-460.0,0.00021917,4]
[365799052,1749919840202,-460.0,0.00021917,4]
[365799053,1749919840213,-460.0,0.00021917,4]
[365799054,1749919840223,-460.0,0.00021917,4]
[365799055,1749919840234,-460.0,0.00021917,4]
[365799056,1749919840244,-460.0,0.00021917,4]
[365799057,1749919840254,-460.0,0.00021917,4]
[365799058,1749919840265,-692.79,0.00021917,4]
[365799059,1749919840276,-460.0,0.00021917,4]
[365799060,1749919840286,-440.0,0.00021917,4]
[365799061,1749919840297,-378.61590313,0.00021917,4]
[365799062,1749919840307,-460.0,0.00021917,4]
[365799063,1749919840317,-1378.44,0.00021917,4]
[365799064,1749919840329,-460.0,0.00021917,4]
[365799065,1749919840340,-430.0,0.00021917,4]
[365799066,1749919840350,-460.0,0.00021917,4]
[365799067,1749919840360,-460.0,0.00021917,4]
[365799068,1749919840371,-430.0,0.00021917,4]
[365799069,1749919840381,-405.80632735,0.00021917,4]
[365799070,1749919840391,-486.04,0.00021917,4]
[365799071,1749919840401,-460.0,0.00021917,4]
[365799072,1749919840411,-430.0,0.00021917,4]
[365799073,1749919840421,-460.0,0.00021917,4]
[365799074,1749919840432,-460.0,0.00021917,4]
[365799075,1749919840441,-460.0,0.00021917,4]
[365799076,1749919840452,-807.22,0.00021917,4]
[365799077,1749919840462,-400.0,0.00021917,4]
[365799078,1749919840476,-460.0,0.00021917,4]
[365799079,1749919840486,-460.0,0.00021917,4]
[365799080,1749919840496,-460.0,0.00021917,4]
[365799081,1749919840507,-858.78,0.00021917,4]
[365799082,1749919840517,-460.0,0.00021917,4]
[365799083,1749919840527,-460.0,0.00021917,4]
[365799084,1749919840537,-460.0,0.00021917,4]
[365799085,1749919840548,-582.18,0.00021917,4]
[365799086,1749919840558,-384.07300146,0.00021917,4]
[365799087,1749919840572,-475.73,0.00021917,4]
[365799088,1749919840582,-460.0,0.00021917,4]
[365799089,1749919840592,-460.0,0.00021917,4]
[365799090,1749919840602,-460.0,0.00021917,4]
[365799091,1749919840612,-460.0,0.00021917,4]
[365799092,1749919840622,-2584.08,0.00021917,4]
[365799093,1749919840632,-460.0,0.00021917,4]
[365799094,1749919840643,-460.0,0.00021917,4]
[365799095,1749919840653,-509.65,0.00021917,4]
[365799097,1749919840663,-493.08,0.00021917,4]
[365799099,1749919840673,-509.09584801,0.00021917,4]
[365799100,1749919840682,-460.0,0.00021917,4]
[365799101,1749919840692,-460.0,0.00021917,4]
[365799102,1749919840702,-460.0,0.00021917,4]
[365799103,1749919840712,-576.17,0.00021917,2]
[365799104,1749919840722,-460.0,0.00021917,4]
[365799105,1749919840732,-1263.55,0.00021917,4]
[365799106,1749919840742,-460.0,0.00021917,4]
[365799107,1749919840752,-2184.94,0.00021917,4]
[365799108,1749919840762,-460.0,0.00021917,4]
[365799109,1749919840772,-390.0,0.00021917,4]
[365799110,1749919840782,-460.0,0.00021917,4]
[365799111,1749919840791,-460.0,0.00021917,4]
[365799112,1749919840802,-460.0,0.00021917,4]
[365799113,1749919840811,-460.0,0.00021917,4]
[365799114,1749919840822,-460.0,0.00021917,4]
[365799115,1749919840832,-460.0,0.00021917,4]
[365799116,1749919840841,-460.0,0.00021917,4]
[365799117,1749919840851,-1397.29,0.00021917,4]
[365799118,1749919840861,-460.0,0.00021917,4]
[365799119,1749919840871,-460.0,0.00021917,4]
[365799120,1749919840881,-460.0,0.00021917,4]
[365799121,1749919840892,-460.0,0.00021917,4]
[365799123,1749919840903,-460.0,0.00021917,4]
[365799125,1749919840913,-2184.59,0.00021917,4]
[365799126,1749919840923,-460.0,0.00021917,4]
[365799127,1749919840933,-1183.77,0.00021917,4]
[365799128,1749919840943,-460.0,0.00021917,4]
[365799129,1749919840953,-791.97,0.00021917,4]
[365799130,1749919840963,-460.0,0.00021917,4]
[365799131,1749919840973,-460.0,0.00021917,4]
[365799132,1749919840982,-460.0,0.00021917,4]
[365799133,1749919840992,-465.03727033,0.00021917,4]
[365799134,1749919841002,-582.86969446,0.00021917,4]
[365799135,1749919841162,-2020.53030554,0.00021917,4]
[365799136,1749919841172,-516.95,0.00021917,4]
[365799137,1749919841182,-460.0,0.00021917,4]
[365799138,1749919841192,-460.0,0.00021917,4]
[365799139,1749919841202,-460.0,0.00021917,4]
[365799140,1749919841212,-2850.93,0.00021917,4]
[365799141,1749919841223,-460.0,0.00021917,4]
[365799142,1749919841232,-460.0,0.00021917,4]
[365799143,1749919841242,-460.0,0.00021917,4]
[365799144,1749919841251,-460.0,0.00021917,4]
[365799145,1749919841261,-460.0,0.00021917,4]
[365799146,1749919841271,-460.0,0.00021917,4]
[365799147,1749919841280,-460.0,0.00021917,4]
[365799148,1749919841290,-310.0,0.00021917,4]
[365799149,1749919841301,-460.0,0.00021917,4]
[365799150,1749919841311,-547.51583279,0.00021917,4]
[365799151,1749919841323,-483.58,0.00021917,4]
[365799152,1749919841333,-460.0,0.00021917,4]
[365799153,1749919841342,-1167.18,0.00021917,4]
[365799154,1749919841353,-460.0,0.00021917,4]
[365799155,1749919841363,-460.0,0.00021917,4]
[365799156,1749919841373,-2729.12,0.00021917,4]
[365799157,1749919841383,-460.0,0.00021917,4]
[365799158,1749919841394,-460.0,0.00021917,4]
[365799159,1749919841405,-460.0,0.00021917,4]
[365799160,1749919841416,-460.0,0.00021917,4]
[365799161,1749919841427,-460.0,0.00021917,4]
[365799162,1749919841438,-460.0,0.00021917,4]
[365799163,1749919841448,-460.0,0.00021917,4]
[365799164,1749919841458,-460.0,0.00021917,4]
[365799165,1749919841474,-460.0,0.00021917,4]
[365799166,1749919841484,-1607.89,0.00021917,4]
[365799167,1749919841493,-291.25242609,0.00021917,4]
[365799168,1749919841503,-1068.66,0.00021917,4]
[365799169,1749919841514,-282.06174206,0.00021917,4]
[365799170,1749919841524,-460.0,0.00021917,4]
[365799171,1749919841534,-460.0,0.00021917,4]
[365799172,1749919841545,-460.0,0.00021917,4]
[365799173,1749919841555,-460.0,0.00021917,4]
[365799174,1749919841565,-2333.81,0.00021917,4]
[365799175,1749919841576,-227.73679731,0.0002192,2]
[365799176,1749919841587,-413.6135152,0.00021956,2]
[365799177,1749919841597,-500.0,0.00021971,2]
[365799178,1749919841607,-237.65669305,0.00021971,2]
[365799179,1749919841618,-500.0,0.00021971,2]
[365799180,1749919841628,-468.59820535,0.00021971,2]
[365799181,1749919841638,-500.0,0.00021971,2]
[365799182,1749919841649,-500.0,0.00021971,2]
[365799183,1749919841659,-500.0,0.00021971,2]
[365799184,1749919841668,-500.0,0.00021971,2]
[365799185,1749919841678,-500.0,0.00021973,2]
[365799186,1749919841688,-500.0,0.00021973,2]
[365799187,1749919841698,-500.0,0.00021973,2]
[365799188,1749919841708,-500.0,0.00021973,2]
[365799189,1749919841718,-500.0,0.00021973,2]
[365799190,1749919841728,-256.30746912,0.00021973,2]
[365799191,1749919841739,-154.04737681,0.00021973,2]
[365799192,1749919841749,-504.43893691,0.00021973,2]
[365799193,1749919841759,-12150.41,0.00022,5]
[365799194,1749919841769,-170.0,0.00022,2]
[365799195,1749919841779,-1624.43579241,0.00022,2]
[365799196,1749919841789,-753.65,0.00022,7]
[365799197,1749919841799,-1301.28698964,0.00022003,6]
[365799198,1749919841809,-195.0,0.0002202,2]
[365799199,1749919841820,-420.0,0.00022082,2]
[365799200,1749919841830,-1366.99512388,0.00022091,2]
[365799201,1749919841839,-1301.28698964,0.00022107,6]
[365799202,1749919841849,-365.2762568,0.0002211,2]
[365799203,1749919841859,-365.2762568,0.0002211,2]
[365799204,1749919841869,-728.6010319,0.0002211,2]
[365799205,1749919841879,-509.50816501,0.00022173,2]
[365799206,1749919841889,-500.0,0.00022173,2]
[365799207,1749919841898,-446.20479493,0.00022173,2]
[365799208,1749919841908,-500.0,0.00022173,2]
[365799209,1749919841918,-358.09952347,0.00022191,4]
[365799210,1749919841927,-460.0,0.00022191,4]
[365799211,1749919841937,-460.0,0.00022191,4]
[365799212,1749919841947,-289.86875441,0.00022191,4]
[365799213,1749919841956,-460.0,0.00022191,4]
[365799214,1749919841966,-460.0,0.00022191,4]
[365799215,1749919841975,-460.0,0.00022191,4]
[365799216,1749919841985,-460.0,0.00022191,4]
[365799217,1749919841995,-460.0,0.00022191,4]
[365799218,1749919842005,-460.0,0.00022191,4]
[365799219,1749919842015,-460.0,0.00022191,4]
[365799220,1749919842025,-460.0,0.00022191,4]
[365799221,1749919842034,-460.0,0.00022191,4]
[365799222,1749919842044,-461.0076523,0.00022191,4]
[365799223,1749919842054,-460.0,0.00022191,4]
[365799224,1749919842064,-517.15,0.00022191,4]
[365799225,1749919842075,-581.83222827,0.00022191,4]
[365799226,1749919842085,-460.0,0.00022191,4]
[365799227,1749919842095,-460.0,0.00022191,4]
[365799228,1749919842105,-460.0,0.00022191,4]
[365799229,1749919842115,-460.0,0.00022191,4]
[365799230,1749919842127,-460.0,0.00022191,4]
[365799231,1749919842137,-460.0,0.00022191,4]
[365799232,1749919842147,-440.0,0.00022191,4]
[365799233,1749919842157,-460.0,0.00022191,4]
[365799234,1749919842167,-460.0,0.00022191,4]
[365799235,1749919842178,-460.0,0.00022191,4]
[365799236,1749919842187,-460.0,0.00022191,4]
[365799237,1749919842198,-155.67092659,0.00022191,4]
[365799238,1749919842208,-460.0,0.00022191,4]
[365799239,1749919842218,-460.0,0.00022191,4]
[365799240,1749919842229,-460.0,0.00022191,4]
[365799241,1749919842240,-460.0,0.00022191,4]
[365799242,1749919842251,-460.0,0.00022191,4]
[365799243,1749919842262,-460.0,0.00022191,4]
[365799244,1749919842272,-460.0,0.00022191,4]
[365799245,1749919842283,-460.0,0.00022191,4]
[365799246,1749919842293,-207.1702133,0.00022191,4]
[365799247,1749919842304,-460.0,0.00022191,4]
[365799248,1749919842315,-499.950315,0.00022191,4]
[365799249,1749919842327,-440.0,0.00022191,4]
[365799250,1749919842338,-340.0,0.00022191,4]
[365799251,1749919842348,-380.0,0.00022191,4]
[365799252,1749919842359,-460.0,0.00022191,4]
[365799253,1749919842369,-310.0,0.00022191,4]
[365799254,1749919842380,-738.79,0.00022191,4]
[365799255,1749919842390,-460.0,0.00022191,4]
[365799256,1749919842401,-460.0,0.00022191,4]
[365799257,1749919842411,-460.0,0.00022191,4]
[365799258,1749919842422,-460.0,0.00022191,4]
[365799259,1749919842434,-536.44811244,0.00022191,4]
[365799260,1749919842586,-460.0,0.00022191,4]
[365799261,1749919842596,-460.0,0.00022191,4]
[365799262,1749919842606,-692.79,0.00022191,4]
[365799263,1749919842616,-460.0,0.00022191,4]
[365799264,1749919842626,-460.0,0.00022191,4]
[365799265,1749919842636,-1378.44,0.00022191,4]
[365799266,1749919842645,-460.0,0.00022191,4]
[365799267,1749919842654,-460.0,0.00022191,4]
[365799268,1749919842664,-370.0,0.00022191,4]
[365799269,1749919842673,-486.04,0.00022191,4]
[365799270,1749919842683,-460.0,0.00022191,4]
[365799271,1749919842692,-460.0,0.00022191,4]
[365799272,1749919842702,-460.0,0.00022191,4]
[365799273,1749919842712,-807.22,0.00022191,4]
[365799274,1749919842722,-460.0,0.00022191,4]
[365799275,1749919842731,-460.0,0.00022191,4]
[365799276,1749919842740,-251.01586478,0.00022191,4]
[365799277,1749919842750,-858.78,0.00022191,4]
[365799278,1749919842759,-460.0,0.00022191,4]
[365799279,1749919842768,-460.0,0.00022191,4]
[365799280,1749919842777,-460.0,0.00022191,4]
[365799281,1749919842787,-582.18,0.00022191,4]
[365799282,1749919842796,-475.73,0.00022191,4]
[365799283,1749919842805,-460.0,0.00022191,4]
[365799284,1749919842815,-430.0,0.00022191,4]
[365799285,1749919842826,-460.0,0.00022191,4]
[365799286,1749919842836,-2584.08,0.00022191,4]
[365799287,1749919842845,-460.0,0.00022191,4]
[365799288,1749919842855,-460.0,0.00022191,4]
[365799289,1749919842865,-509.65,0.00022191,4]
[365799290,1749919842875,-493.08,0.00022191,4]
[365799291,1749919842884,-460.0,0.00022191,4]
[365799292,1749919842894,-460.0,0.00022191,4]
[365799293,1749919842904,-576.17,0.00022191,2]
[365799294,1749919842914,-1263.55,0.00022191,4]
[365799295,1749919842923,-460.0,0.00022191,4]
[365799296,1749919842933,-460.0,0.00022191,4]
[365799297,1749919842942,-2184.94,0.00022191,4]
[365799298,1749919842952,-460.0,0.00022191,4]
[365799299,1749919842961,-460.0,0.00022191,4]
[365799300,1749919842971,-460.0,0.00022191,4]
[365799301,1749919842980,-460.0,0.00022191,4]
[365799302,1749919842990,-460.0,0.00022191,4]
[365799303,1749919842999,-460.0,0.00022191,4]
[365799304,1749919843010,-1397.29,0.00022191,4]
[365799305,1749919843020,-460.0,0.00022191,4]
[365799306,1749919843029,-460.0,0.00022191,4]
[365799307,1749919843039,-460.0,0.00022191,4]
[365799308,1749919843049,-460.0,0.00022191,4]
[365799309,1749919843058,-2184.59,0.00022191,4]
[365799310,1749919843067,-460.0,0.00022191,4]
[365799311,1749919843078,-1183.77,0.00022191,4]
[365799312,1749919843088,-460.0,0.00022191,4]
[365799314,1749919843098,-791.97,0.00022191,4]
[365799315,1749919843107,-460.0,0.00022191,4]
[365799317,1749919843116,-460.0,0.00022191,4]
[365799319,1749919843126,-2603.4,0.00022191,4]
[365799321,1749919843136,-516.95,0.00022191,4]
[365799322,1749919843145,-460.0,0.00022191,4]
[365799325,1749919843161,-460.0,0.00022191,4]
[365799327,1749919843174,-460.0,0.00022191,4]
[365799329,1749919843185,-2850.93,0.00022191,4]
[365799331,1749919843194,-280.0,0.00022191,4]
[365799333,1749919843206,-460.0,0.00022191,4]
[365799337,1749919843217,-460.0,0.00022191,4]
[365799339,1749919843227,-460.0,0.00022191,4]
[365799341,1749919843237,-460.0,0.00022191,4]
[365799343,1749919843247,-460.0,0.00022191,4]